bitfinex/quotes_ETHUSD_20240621
["timestamp","ask_amount","ask_price","bid_price","bid_amount"]
[1718989213052,2.3263,3491.7,3491.0,2.29159]
[1718989213193,3.47697008,3491.6,3490.9,0.839]
[1718989213398,2.57875444,3491.5,3490.9,0.839]
[1718989213609,2.57877565,3491.4,3490.8,0.839]
[1718989213836,2.57877738,3491.3,3490.0,2.2795]
[1718989214034,3.82024145,3491.2,3490.2,0.839]
[1718989214242,3.47718125,3491.1,3490.2,3.13111]
[1718989214568,2.98124145,3491.0,3490.2,3.13111]
[1718989214752,0.839,3491.2,3490.2,3.90139]
[1718989214911,2.98144563,3491.1,3490.3,2.29205]
[1718989215258,2.08314667,3491.0,3490.2,3.9014]
[1718989215438,2.08314667,3490.9,3490.2,3.9014]
[1718989215620,0.839,3491.2,3490.2,3.9014]
[1718989215949,3.47742844,3491.1,3490.3,3.139365]
[1718989216161,2.08315032,3491.0,3490.3,3.139365]
[1718989216299,0.839,3491.3,3490.3,3.139365]
[1718989216513,3.47743126,3491.2,3490.3,3.139365]
[1718989216728,2.98144023,3491.1,3490.3,3.139365]
[1718989216949,0.839,3491.3,3490.3,3.139365]
[1718989216950,2.08314386,3491.0,3490.3,3.139365]
[1718989217270,0.839,3491.3,3490.3,3.139365]
[1718989217421,3.47742498,3491.2,3490.3,3.139365]
[1718989217743,2.08315071,3491.1,3490.4,0.03357106]
[1718989217924,2.08315071,3491.0,3490.4,0.03357106]
[1718989218253,0.839,3491.3,3490.4,0.66397767]
[1718989218448,3.47741772,3491.2,3490.4,0.66397767]
[1718989218617,2.08314503,3491.1,3490.4,0.66397767]
[1718989218805,2.08314503,3491.0,3490.4,0.66397767]
[1718989219109,0.839,3491.3,3490.4,0.66397767]
[1718989219308,2.98144154,3491.2,3490.4,0.66397767]
[1718989219549,2.3263,3491.7,3490.7,2.29179]
[1718989219720,2.57890729,3491.6,3490.8,0.839]
[1718989219935,2.98108544,3491.5,3490.8,3.13072]
[1718989220255,2.08296358,3491.4,3490.9,0.03280645]
[1718989220427,3.68543446,3491.3,3490.9,0.03280645]
[1718989220766,3.68543446,3491.3,3489.6,7.44]
[1718989220767,2.98141876,3491.2,3490.3,3.13105]
[1718989220965,2.08315235,3491.1,3490.4,0.03284963]
[1718989221130,2.08315235,3491.0,3490.4,0.03284963]
[1718989221344,2.08315235,3491.0,3490.5,0.03279495]
[1718989221522,2.08315235,3491.0,3490.2,0.839]
[1718989221863,0.839,3491.4,3490.4,3.13098]
[1718989222048,3.47728559,3491.3,3490.4,0.839]
[1718989222227,2.08309769,3491.2,3490.5,0.03279495]
[1718989222555,2.08309769,3491.1,3490.5,0.03279495]
[1718989222744,0.839,3491.4,3490.5,0.03279495]
[1718989222952,0.839,3491.2,3490.5,0.03279495]
[1718989223249,2.08314859,3491.1,3490.5,0.03279495]
[1718989223750,0.839,3491.2,3490.5,0.03279495]
[1718989223922,2.08315673,3491.1,3490.5,0.03279495]
[1718989224328,2.08315673,3491.1,3490.2,3.13111]
[1718989224511,2.08315673,3491.1,3490.2,3.901389]
[1718989224908,2.08315673,3491.1,3490.3,0.03281223]
[1718989225216,2.08315673,3491.1,3490.3,2.32486223]
[1718989226117,2.08315673,3491.1,3490.3,0.03281223]
[1718989226624,0.839,3491.2,3490.3,0.03281223]
[1718989226827,2.57916256,3491.1,3490.3,0.03281223]
[1718989227021,0.839,3491.2,3490.3,0.03281223]
[1718989227215,2.57914614,3491.1,3490.3,0.03281223]
[1718989227551,0.839,3491.2,3490.3,0.03281223]
[1718989227708,2.57917598,3491.1,3490.3,0.03281223]
[1718989227909,0.49599538,3491.0,3490.3,0.03281223]
[1718989228156,0.49599538,3491.1,3490.3,0.03281223]
[1718989228309,0.49599972,3491.0,3490.3,0.54640178]
[1718989228509,5.0319,3491.0,3490.3,0.03281223]
[1718989228757,0.839,3490.5,3490.3,0.03281223]
[1718989228947,0.49607337,3490.4,3489.6,2.3384]
[1718989229269,0.839,3490.5,3489.7,0.57882405]
[1718989229460,0.49608041,3490.4,3489.7,0.57882405]
[1718989229679,0.839,3490.5,3489.7,0.57882405]
[1718989229814,0.49608982,3490.4,3489.7,0.57882405]
[1718989230635,3.3089,3490.3,3489.7,0.03182005]
[1718989230851,0.49608982,3490.2,3489.7,0.03182005]
[1718989231073,0.49608982,3490.2,3489.3,0.839]
[1718989231074,0.49608982,3490.2,3489.2,2.29277]
[1718989231357,0.49608982,3490.2,3489.3,0.839]
[1718989231530,0.49608982,3490.2,3489.4,0.02717053]
[1718989232544,1.33512472,3490.1,3489.4,0.02717053]
[1718989232768,0.49612472,3490.0,3489.4,0.02717053]
[1718989232968,0.49612472,3490.0,3489.2,0.839]
[1718989233202,0.49612472,3490.0,3489.3,0.02717917]
[1718989233467,0.839,3489.7,3489.3,0.02717917]
[1718989233691,0.839,3489.7,3488.6,2.26]
[1718989233692,0.49612472,3489.6,3488.6,2.26]
[1718989233968,0.49612472,3489.6,3488.7,0.839]
[1718989234157,0.839,3489.7,3488.7,0.86540775]
[1718989234340,0.49612472,3489.6,3488.8,0.54185478]
[1718989234543,0.49612472,3489.6,3488.9,0.02639046]
[1718989235361,0.839,3489.7,3488.9,0.02639046]
[1718989235672,0.49619854,3489.6,3488.9,0.02639046]
[1718989235884,0.839,3489.7,3488.9,0.62242898]
[1718989236167,0.49619944,3489.6,3488.9,0.62242898]
[1718989236460,0.49619944,3489.5,3488.9,0.62242898]
[1718989236666,0.49619944,3489.6,3488.9,0.62242898]
[1718989237031,0.839,3489.7,3488.9,0.62242898]
[1718989237285,0.49620182,3489.6,3488.9,0.62242898]
[1718989237576,0.839,3489.7,3488.9,0.62242898]
[1718989237874,0.49620158,3489.6,3488.9,0.62242898]
[1718989238049,2.88830158,3489.6,3488.9,0.62242898]
[1718989238358,0.839,3489.4,3488.9,0.02639046]
[1718989238541,0.839,3489.4,3488.5,0.839]
[1718989238867,0.839,3489.2,3488.6,0.02662354]
[1718989239378,0.839,3489.2,3488.7,0.02667409]
[1718989239555,0.839,3489.2,3488.4,2.3399]
[1718989239876,0.839,3489.2,3488.5,0.02669796]
[1718989240953,0.839,3489.2,3488.5,0.04692645]
[1718989241771,0.839,3489.0,3488.5,0.04692645]
[1718989241937,0.49630493,3488.9,3488.0,3.2276]
[1718989242277,0.839,3488.5,3488.1,0.04178447]
[1718989242767,2.477,3488.8,3488.2,0.04207162]
[1718989242768,0.839,3488.7,3488.2,0.04207162]
[1718989242987,2.477,3488.8,3487.8,0.839]
[1718989243284,0.839,3488.9,3487.9,2.30201486]
[1718989243585,0.839,3488.7,3487.9,2.2599]
[1718989243862,0.839,3488.7,3488.0,0.04232531]
[1718989244869,0.839,3488.5,3488.0,0.04232531]
[1718989245566,0.839,3488.5,3488.1,0.02603453]
[1718989245767,0.839,3488.5,3487.6,2.4456]
[1718989245949,0.839,3488.7,3487.7,0.86508229]
[1718989246147,3.0,3489.0,3488.3,2.2516]
[1718989246472,0.839,3488.7,3488.4,0.02602175]
[1718989246874,0.839,3488.7,3487.9,2.2516]
[1718989247051,0.839,3488.5,3487.9,2.2516]
[1718989247255,0.839,3488.5,3488.0,0.02604976]
[1718989248966,0.9852,3489.0,3488.0,0.02604976]
[1718989249318,0.839,3488.9,3488.0,0.02604976]
[1718989249461,0.839,3488.9,3488.0,1.40609174]
[1718989251557,0.9852,3489.0,3488.0,1.40609174]
[1718989251758,0.839,3488.9,3488.0,0.86504976]
[1718989252182,0.839,3488.9,3488.0,3.15857976]
[1718989252488,0.839,3488.9,3488.1,2.2935]
[1718989252651,0.839,3488.9,3488.0,0.86504976]
[1718989252857,9.5507,3489.5,3487.3,0.4723]
[1718989252858,7.29,3489.5,3488.8,0.839]
[1718989253068,12.49,3490.1,3489.0,0.839]
[1718989253069,7.29,3490.1,3489.0,0.839]
[1718989253495,1.33519814,3490.0,3489.0,3.1319]
[1718989253702,7.29,3490.1,3489.1,2.34087404]
[1718989253858,0.839,3489.9,3489.1,0.02587237]
[1718989254755,0.839,3489.9,3489.2,0.02585715]
[1718989254984,0.49620789,3489.8,3488.9,0.839]
[1718989255176,0.49620614,3489.7,3489.0,0.02587443]
[1718989255420,3.0,3490.0,3489.0,0.02587443]
[1718989255592,0.49619587,3489.9,3489.0,0.02587443]
[1718989255821,0.49619587,3489.8,3489.0,0.02587443]
[1718989255965,0.49619587,3489.9,3488.7,2.3485]
[1718989256171,2.08411697,3489.8,3488.8,0.02589172]
[1718989256397,0.49621392,3489.7,3488.8,0.02589172]
[1718989256606,0.49621392,3489.9,3488.8,0.02589172]
[1718989256804,3.53541195,3489.8,3488.8,0.02589172]
[1718989257095,0.49621392,3489.7,3488.8,0.02589172]
[1718989257712,0.49621392,3489.7,3488.8,0.03468488]
[1718989259240,0.95507,3489.8,3488.8,0.03468488]
[1718989259529,1.723,3489.5,3488.8,0.03468488]
[1718989259816,1.723,3489.5,3488.3,2.3375]
[1718989259817,3.35080755,3489.4,3488.3,2.3375]
[1718989260016,2.5804434,3489.3,3488.4,0.02943279]
[1718989260333,2.5804434,3489.2,3488.4,0.02943279]
[1718989260528,0.49623457,3489.1,3488.4,0.02943279]
[1718989260695,0.49623457,3489.2,3488.4,0.02943279]
[1718989260899,2.58077659,3489.1,3488.3,2.3375]
[1718989261105,0.79939587,3489.0,3488.3,2.3375]
[1718989261306,0.45083642,3489.3,3488.3,2.3375]
[1718989261307,0.45083642,3489.3,3488.4,0.02733045]
[1718989261494,0.49632508,3488.9,3488.4,0.02733045]
[1718989261678,0.49632304,3488.8,3488.4,0.02733045]
[1718989261885,7.74083642,3489.3,3488.4,0.02733045]
[1718989262085,2.58088812,3489.2,3488.4,0.02733045]
[1718989262394,3.61306057,3489.1,3488.3,2.3375]
[1718989262625,2.58088812,3489.0,3488.3,2.3375]
[1718989262779,0.49632465,3488.9,3488.3,2.3375]
[1718989262975,1.03217245,3489.1,3488.3,2.3375]
[1718989262976,0.49632465,3489.0,3488.3,2.3375]
[1718989263216,0.49632465,3488.9,3488.4,0.02567623]
[1718989263513,0.49632465,3488.8,3488.4,0.02567623]
[1718989263668,0.49632465,3488.7,3488.4,0.02567623]
[1718989263875,0.49632465,3488.6,3488.4,0.02567623]
[1718989264111,0.49632465,3488.5,3487.9,2.2976]
[1718989264323,1.03217245,3489.1,3487.9,2.2976]
[1718989264477,0.49632441,3488.4,3487.9,2.2976]
[1718989264677,0.80201662,3489.0,3487.9,2.2976]
[1718989264925,0.49632787,3488.9,3487.9,2.2976]
[1718989265126,0.49632787,3488.8,3487.9,2.2976]
[1718989265326,0.49632787,3488.7,3487.9,2.2976]
[1718989265524,0.49632787,3488.6,3487.9,2.986101]
[1718989265843,0.80201662,3489.0,3487.9,2.986101]
[1718989265844,0.49632787,3488.5,3487.9,2.986101]
[1718989266132,0.80201662,3489.0,3487.9,2.986101]
[1718989266133,0.49632787,3488.4,3487.9,2.986101]
[1718989266312,4.723,3489.4,3487.9,2.986101]
[1718989266507,6.62715907,3489.3,3487.9,2.2976]
[1718989266702,3.62715907,3489.2,3487.9,2.2976]
[1718989266932,2.58087957,3489.1,3487.9,2.2976]
[1718989267215,2.58087957,3489.0,3487.9,4.59124]
[1718989267427,2.58088486,3488.9,3487.9,5.27974]
[1718989267601,0.49632403,3488.8,3487.9,2.9861]
[1718989267802,0.49632403,3488.9,3487.9,2.9861]
[1718989268035,0.49632403,3488.8,3487.9,2.9861]
[1718989268362,2.58089976,3488.7,3487.9,2.2976]
[1718989268541,2.58089976,3488.6,3487.5,2.2521]
[1718989268855,2.58089976,3488.5,3487.5,2.2521]
[1718989269051,2.83898974,3488.4,3487.5,2.2521]
[1718989269203,2.58089976,3488.3,3487.5,2.2521]
[1718989269540,2.58089976,3488.2,3487.5,2.2521]
[1718989269859,2.58089976,3488.1,3486.8,4.56274]
[1718989270008,2.58089976,3488.0,3486.9,0.685714]
[1718989270348,2.58161806,3487.9,3486.9,0.685714]
[1718989270565,2.58162022,3487.8,3486.8,2.2684]
[1718989270737,2.58162022,3487.7,3486.8,2.2684]
[1718989271049,2.58183776,3487.6,3486.9,0.02604619]
[1718989271230,2.5818623,3487.5,3486.9,0.02604619]
[1718989271430,0.49651629,3487.4,3486.9,0.02604619]
[1718989271738,0.49651629,3487.3,3486.9,0.02604619]
[1718989271926,0.49651629,3487.8,3486.9,0.02604619]
[1718989272149,4.45509376,3487.7,3486.9,0.02604619]
[1718989272362,2.58187206,3487.6,3486.3,2.4304]
[1718989272588,2.58187206,3487.5,3486.3,2.4304]
[1718989272728,2.58187206,3487.4,3486.4,0.02608947]
[1718989273038,2.58187206,3487.4,3486.3,2.4304]
[1718989273039,2.58187206,3487.3,3486.3,2.4304]
[1718989273241,2.5822399,3487.2,3486.3,2.4304]
[1718989273487,2.08565531,3487.1,3486.3,2.4304]
[1718989273788,0.49658563,3487.0,3486.3,2.4304]
[1718989273964,0.60502094,3487.4,3486.4,0.02608947]
[1718989274126,2.58214296,3487.3,3486.4,0.02608947]
[1718989274344,2.58214296,3487.2,3486.4,0.02608947]
[1718989274573,2.58214296,3487.1,3486.4,0.02608947]
[1718989274724,0.60502094,3487.4,3486.3,2.4304]
[1718989274916,2.98306136,3487.3,3486.5,0.02608082]
[1718989275133,3.62680119,3487.2,3486.4,0.02608947]
[1718989275354,2.58219136,3487.1,3486.3,2.4304]
[1718989275527,2.58219136,3487.0,3486.3,2.4304]
[1718989275780,0.40087,3487.3,3486.4,0.02608947]
[1718989275781,2.0856161,3486.9,3486.4,0.02608947]
[1718989275958,4.723,3487.5,3486.4,0.27173842]
[1718989276224,2.58215817,3487.4,3486.4,0.27173842]
[1718989276387,2.08558929,3487.3,3486.4,0.27173842]
[1718989276559,3.0,3487.8,3486.4,0.27173842]
[1718989276739,3.6266226,3487.7,3486.4,0.27173842]
[1718989276970,6.6266226,3487.6,3486.4,0.27173842]
[1718989277270,2.58206542,3487.5,3486.5,2.3907]
[1718989277433,7.29,3487.9,3487.0,2.3907]
[1718989277639,2.58177823,3487.8,3487.1,0.02602888]
[1718989277875,2.0852823,3487.7,3487.0,2.3907]
[1718989278188,2.0852823,3487.7,3487.1,0.02646345]
[1718989278464,7.29,3487.9,3487.1,0.02646345]
[1718989278668,2.08523527,3487.8,3487.1,0.02646345]
[1718989279046,7.29,3487.9,3487.2,2.29409]
[1718989279240,7.29,3487.9,3487.3,3.01836814]
[1718989279456,7.29,3487.9,3487.5,2.2939]
[1718989279750,7.29,3488.9,3487.8,4.67848]
[1718989280068,6.62620185,3488.8,3487.9,0.02639424]
[1718989280270,3.62620185,3488.7,3487.9,0.02639424]
[1718989280454,2.08481941,3488.6,3487.8,2.3848]
[1718989280789,5.015,3489.3,3487.9,0.02639424]
[1718989280790,2.08481941,3488.5,3487.9,0.02639424]
[1718989280934,5.015,3489.3,3487.3,0.697902]
[1718989280935,2.58123687,3488.4,3487.3,2.3848]
[1718989281144,2.08481941,3488.3,3487.4,0.02643749]
[1718989281390,2.08481941,3488.2,3487.4,0.02643749]
[1718989281551,2.08481941,3488.1,3487.4,2.32039749]
[1718989281830,12.389,3488.8,3487.4,0.02643749]
[1718989282054,1.725,3488.4,3487.3,2.3848]
[1718989282356,5.72539903,3488.3,3486.8,2.4724]
[1718989282569,3.62639903,3488.2,3486.8,2.4724]
[1718989282738,3.62639903,3488.1,3486.9,0.02670128]
[1718989282978,3.62639903,3488.0,3486.9,0.02670128]
[1718989283180,4.3595,3487.7,3486.9,0.02670128]
[1718989283348,3.62612049,3487.6,3486.3,2.4724]
[1718989283569,3.62612049,3487.5,3486.4,0.0267709]
[1718989283805,4.42468254,3487.4,3486.4,0.0267709]
[1718989283966,6.62612049,3487.3,3486.0,2.29483]
[1718989284156,3.62612049,3487.2,3486.1,0.02679687]
[1718989284415,6.62612049,3487.1,3486.1,0.02679687]
[1718989284554,4.58873254,3487.0,3486.1,0.02679687]
[1718989284761,0.96261205,3487.0,3486.1,0.02679687]
[1718989285040,2.58245489,3486.9,3486.1,0.57679687]
[1718989285173,2.08582895,3486.8,3486.1,0.57679687]
[1718989285373,3.0,3487.4,3486.1,2.87161687]
[1718989285590,3.62693308,3487.3,3486.1,2.84482]
[1718989285797,6.62693308,3487.2,3486.1,2.84482]
[1718989285981,3.62693308,3487.1,3486.2,2.32154822]
[1718989286162,3.0,3487.4,3486.3,2.29463]
[1718989286392,2.58219519,3487.3,3486.4,0.0267709]
[1718989286576,0.29891827,3487.5,3486.4,0.0267709]
[1718989286577,2.0856006,3487.2,3486.4,0.0267709]
[1718989286788,3.29891827,3487.5,3486.2,2.29476]
[1718989286988,6.61898885,3487.4,3486.3,2.32146956]
[1718989287160,2.58214702,3487.3,3486.3,2.32146956]
[1718989287405,2.3445,3487.7,3486.3,2.32146956]
[1718989287406,7.29,3487.9,3487.0,2.29422]
[1718989287584,3.62642551,3487.8,3487.1,0.02671031]
[1718989287777,2.58183246,3487.7,3487.0,2.29422]
[1718989287958,3.0,3488.2,3487.1,0.02671031]
[1718989288306,4.09878095,3488.1,3486.9,2.29429]
[1718989288569,6.62628095,3488.0,3486.9,2.29429]
[1718989288691,2.58171184,3487.9,3487.0,0.02671897]
[1718989288887,5.58174301,3487.8,3487.0,0.02671897]
[1718989289104,2.58174007,3487.7,3487.0,0.02671897]
[1718989289316,0.49648773,3487.6,3487.0,0.02671897]
[1718989289520,3.0,3488.2,3487.0,0.02671897]
[1718989289853,3.62637862,3488.1,3487.0,0.02671897]
[1718989289986,6.62637862,3488.0,3487.0,0.02671897]
[1718989290178,3.62637862,3487.9,3486.8,0.55]
[1718989290414,6.24437582,3487.8,3486.9,0.02666502]
[1718989290672,2.58190724,3487.7,3486.9,0.02666502]
[1718989290879,2.58190724,3487.6,3486.9,0.02666502]
[1718989291190,0.49652062,3487.5,3487.0,0.02665637]
[1718989291485,0.3,3487.7,3486.8,2.29436]
[1718989291697,0.49650859,3487.6,3487.1,0.02664771]
[1718989291937,3.0,3488.3,3487.3,4.67367]
[1718989292088,3.0,3488.3,3487.5,2.29389]
[1718989292089,2.58152355,3488.2,3487.5,2.29389]
[1718989292281,0.49645833,3488.1,3487.4,2.32058175]
[1718989292486,0.49645833,3488.0,3487.6,0.02679543]
[1718989292783,1.029,3488.3,3487.7,0.02678678]
[1718989292968,2.58141505,3488.2,3487.5,2.29386]
[1718989293221,0.49642597,3488.1,3487.6,0.02671969]
[1718989293398,9.573,3488.9,3487.6,0.02671969]
[1718989293399,0.49642597,3488.0,3487.6,0.02671969]
[1718989293719,1.725,3488.7,3487.4,2.29395]
[1718989293916,3.62630589,3488.6,3487.7,0.02671104]
[1718989294123,1.725,3488.7,3487.4,2.29395]
[1718989294124,6.62630589,3488.5,3487.4,2.29395]
[1718989294282,4.46143648,3488.4,3487.8,0.02670239]
[1718989294607,5.58144101,3488.3,3487.4,2.29395]
[1718989294807,0.49643096,3488.2,3487.5,0.02672834]
[1718989295074,0.49643096,3488.2,3487.7,2.29371]
[1718989295378,0.49638777,3488.1,3487.8,2.32036239]
[1718989295721,3.0,3488.8,3487.9,2.29362]
[1718989295940,3.62608725,3488.7,3487.8,0.02670239]
[1718989296113,3.24369613,3488.6,3488.0,0.02659619]
[1718989296311,0.49636296,3488.5,3487.9,0.02660484]
[1718989296544,3.0,3489.2,3488.1,2.32007754]
[1718989296828,3.62599223,3489.1,3488.2,0.02657889]
[1718989296979,4.04499084,3489.0,3488.2,0.02657889]
[1718989297179,2.08464362,3488.9,3488.2,0.02657889]
[1718989297490,0.49634335,3488.8,3488.2,0.02657889]
[1718989297831,10.41672977,3489.8,3488.5,2.2932]
[1718989298007,6.62594024,3489.7,3488.6,0.0265443]
[1718989298219,3.62594024,3489.6,3488.5,2.29324]
[1718989298502,6.62594024,3489.5,3488.6,0.0265443]
[1718989298698,4.28853426,3489.4,3488.6,0.0265443]
[1718989298899,6.62594024,3489.3,3488.6,0.0265443]
[1718989299098,2.58071171,3489.2,3488.6,0.0265443]
[1718989299418,2.58074699,3489.1,3488.6,0.0265443]
[1718989299593,3.0,3489.3,3488.3,4.69037]
[1718989299810,2.580732,3489.2,3488.5,2.29324]
[1718989300020,0.4962947,3489.1,3488.6,2.3197243]
[1718989300197,0.4962947,3489.0,3488.6,0.0265443]
[1718989300393,3.0,3489.7,3488.4,0.698384]
[1718989300604,3.62560878,3489.6,3488.5,0.79441728]
[1718989300907,6.62560878,3489.5,3488.5,0.02621388]
[1718989301118,3.62560878,3489.4,3488.5,2.31940388]
[1718989301305,3.62560878,3489.3,3488.5,2.31940388]
[1718989301616,3.0,3489.5,3488.6,2.76481039]
[1718989301617,0.49628054,3489.2,3488.6,2.76481039]
[1718989301781,3.0,3489.7,3488.7,0.02594313]
[1718989301981,3.62553939,3489.6,3488.8,2.29304]
[1718989302293,3.0,3489.8,3489.1,2.29283]
[1718989302514,2.08404802,3489.7,3489.1,2.29283]
[1718989302728,0.99286183,3489.9,3489.2,0.02589991]
[1718989302729,5.08404802,3489.8,3489.2,0.02589991]
[1718989302938,3.49619241,3489.7,3489.2,0.02589991]
[1718989303148,0.90769099,3489.8,3489.2,0.02589991]
[1718989303451,0.49619153,3489.7,3489.2,0.02589991]
[1718989303596,0.99286183,3489.9,3489.0,2.29291]
[1718989303936,2.58026078,3489.8,3489.1,0.02582958]
[1718989304138,5.58026078,3489.7,3489.1,0.02582958]
[1718989304352,0.65731226,3489.7,3489.1,0.02582958]
[1718989304637,0.99286183,3489.9,3489.1,0.02582958]
[1718989304835,2.58026762,3489.8,3489.1,2.31862958]
[1718989305055,0.99286183,3489.9,3489.1,2.31862958]
[1718989305203,2.58023868,3489.8,3489.1,2.31862958]
[1718989305544,0.65731005,3489.8,3489.1,2.31862958]
[1718989307495,0.65731005,3489.8,3489.1,0.02582958]
[1718989308022,2.08412969,3489.7,3489.2,0.02568933]
[1718989308221,2.08412969,3489.7,3488.9,2.29298]
[1718989308534,0.65731005,3489.8,3489.0,0.02570662]
[1718989308694,2.24914157,3489.7,3489.0,0.02570662]
[1718989308895,0.16501719,3489.7,3489.0,0.02570662]
[1718989312146,0.16501719,3489.7,3488.8,2.29303]
[1718989312329,0.16501719,3489.7,3489.1,0.02570784]
[1718989312517,0.16501719,3489.7,3488.5,2.29323]
[1718989312860,0.16501719,3489.7,3488.5,2.99159]
[1718989313040,0.16501719,3489.7,3488.6,0.03190505]
[1718989313650,0.16501719,3489.7,3488.7,2.2931]
[1718989313829,0.16501719,3489.7,3488.8,0.03188343]
[1718989314168,0.99286183,3489.9,3488.8,0.03188343]
[1718989314457,3.0,3490.0,3488.9,2.29296]
[1718989314752,2.5803431,3489.9,3489.0,0.03477629]
[1718989314975,3.0,3490.2,3489.0,0.03477629]
[1718989315280,3.0,3490.2,3489.0,2.3509]
[1718989315281,3.98325028,3490.1,3489.0,2.3509]
[1718989315470,5.58026513,3490.0,3489.1,0.0347645]
[1718989315780,0.49620655,3489.9,3489.1,0.0347645]
[1718989315945,0.49620655,3489.8,3489.1,0.0347645]
[1718989316137,1.403,3490.1,3489.1,0.0347645]
[1718989316461,3.01149799,3490.0,3489.1,0.0347645]
[1718989316636,3.49620871,3489.9,3489.1,0.0347645]
[1718989316833,3.0,3490.2,3489.1,0.0347645]
[1718989316834,0.49620871,3489.8,3489.1,0.0347645]
[1718989317175,3.0,3490.2,3489.3,2.29271]
[1718989317322,0.49617484,3490.1,3489.3,2.29271]
[1718989317544,7.29,3490.3,3489.4,2.32737915]
[1718989317851,3.49616244,3490.2,3489.4,0.03472915]
[1718989318094,0.49616244,3490.1,3489.3,0.55]
[1718989318250,0.49616244,3490.7,3489.4,0.03820206]
[1718989318426,4.09220672,3490.6,3489.4,0.03820206]
[1718989318621,2.58005048,3490.5,3489.5,2.29257]
[1718989318958,3.4961626,3490.4,3489.6,0.03817614]
[1718989319129,0.4961626,3490.3,3489.6,0.03817614]
[1718989319336,1.51215624,3490.6,3489.6,0.03817614]
[1718989319337,0.4961626,3490.5,3489.6,0.03817614]
[1718989319531,2.08392029,3490.4,3489.2,2.29276]
[1718989319742,0.4961626,3490.3,3489.2,2.29276]
[1718989319943,3.4961626,3490.3,3489.3,0.03474093]
[1718989320162,0.4961626,3490.2,3489.3,0.03474093]
[1718989320350,0.34961626,3490.1,3489.3,0.03474093]
[1718989320667,0.49617599,3490.0,3489.3,0.03474093]
[1718989320879,0.49617599,3489.9,3489.3,2.32746093]
[1718989321157,0.32203283,3490.5,3489.3,0.03474093]
[1718989321376,2.58009877,3490.4,3489.3,0.03474093]
[1718989321660,2.2516,3490.2,3489.3,0.03474093]
[1718989321876,2.2516,3490.2,3489.0,2.3509]
[1718989321877,3.06326865,3490.1,3489.0,2.3509]
[1718989322163,0.49617284,3490.0,3489.1,0.03186746]
[1718989322456,0.49617284,3490.0,3489.3,2.2927]
[1718989322661,0.49617284,3490.0,3489.7,2.29245]
[1718989322867,3.0,3490.6,3489.8,0.49029484]
[1718989323085,0.49611661,3490.5,3489.8,0.03179184]
[1718989323259,3.0,3490.6,3489.8,0.03179184]
[1718989323560,0.49612164,3490.5,3490.0,2.2922]
[1718989323747,0.49612164,3490.4,3490.1,2.29214]
[1718989323932,2.3729,3491.2,3490.3,2.29206]
[1718989324135,2.57945913,3491.1,3490.3,2.29206]
[1718989324361,0.49604983,3491.0,3490.4,0.04183125]
[1718989324609,0.49604983,3490.9,3490.4,0.04183125]
[1718989324749,0.49604983,3490.8,3490.4,0.04183125]
[1718989324947,0.49604983,3490.7,3490.4,0.04183125]
[1718989325159,0.49604983,3490.6,3490.4,0.04183125]
[1718989325368,3.0,3491.6,3490.4,0.04183125]
[1718989325553,2.3729,3491.7,3490.4,0.04183125]
[1718989325554,2.57925347,3491.5,3490.4,0.04183125]
[1718989325732,3.0,3491.4,3490.2,0.55]
[1718989326066,0.49600895,3491.3,3490.3,2.29206]
[1718989326279,3.49600895,3491.6,3490.4,0.04183125]
[1718989326559,5.5792408,3491.5,3490.3,2.29206]
[1718989326761,0.49600895,3491.4,3490.3,2.29206]
[1718989326929,0.49600895,3491.3,3490.4,0.04183125]
[1718989327141,0.49600895,3491.5,3490.4,0.04183125]
[1718989327331,0.5868909,3491.4,3490.3,2.29206]
[1718989327526,0.49600895,3491.3,3490.3,2.29206]
[1718989327894,0.49600895,3491.3,3490.4,0.04183125]
[1718989328167,0.49600895,3491.3,3490.3,2.29206]
[1718989328558,0.5868909,3491.4,3490.4,0.04183125]
[1718989328732,0.49600916,3491.2,3490.5,2.4638]
[1718989329089,0.49600916,3491.1,3490.6,2.88365246]
[1718989329286,0.49600916,3491.5,3490.6,1.28624525]
[1718989329431,3.0,3491.7,3490.6,1.28624525]
[1718989329432,0.49597463,3491.4,3490.6,1.28624525]
[1718989329642,0.49597463,3491.3,3490.6,3.57809525]
[1718989329882,0.49597463,3491.2,3490.6,3.57810525]
[1718989330181,0.49597463,3491.1,3490.6,3.57810525]
[1718989330383,0.49597463,3491.6,3490.6,3.57810525]
[1718989330584,0.49597988,3491.5,3490.7,2.2918]
[1718989330753,0.49597988,3491.4,3490.6,0.55]
[1718989330932,0.49597988,3491.3,3490.6,0.55]
[1718989331133,0.49597988,3491.5,3490.5,2.4638]
[1718989331392,0.49597988,3491.4,3490.5,2.4638]
[1718989331736,0.80518907,3491.5,3490.5,2.4638]
[1718989331933,0.49599831,3491.4,3490.5,2.4638]
[1718989332187,0.80518907,3491.5,3490.5,4.75572]
[1718989332348,0.49599022,3491.3,3490.5,4.75572]
[1718989332703,0.49599022,3491.2,3490.5,2.4638]
[1718989332911,0.49599022,3491.1,3490.5,2.4638]
[1718989333103,0.80518907,3491.5,3490.5,2.4638]
[1718989333266,0.49598653,3491.4,3490.5,2.4638]
[1718989333468,0.49598653,3491.3,3490.5,3.10457277]
[1718989333666,0.49598653,3491.2,3490.6,2.29185]
[1718989333917,0.80518907,3491.5,3490.6,2.29185]
[1718989334084,0.49598708,3491.4,3490.6,2.29185]
[1718989334398,0.49598708,3491.3,3490.6,2.29185]
[1718989334633,0.49598708,3491.2,3490.6,2.29185]
[1718989334773,7.29,3491.8,3490.7,2.2918]
[1718989334984,0.49596416,3491.7,3490.8,0.55]
[1718989335323,7.29,3491.8,3490.8,0.55]
[1718989335465,0.49594332,3491.6,3490.8,0.55]
[1718989335675,0.49594332,3491.5,3490.8,0.55]
[1718989336022,8.5636,3491.8,3490.8,2.84172]
[1718989336174,0.4959535,3491.7,3490.8,2.84172]
[1718989338520,2.57895543,3491.6,3490.8,2.84172]
[1718989338743,0.49595296,3491.5,3490.8,0.55]
[1718989338939,0.49595296,3491.7,3490.8,0.55]
[1718989339221,0.49595301,3491.6,3490.8,1.45070441]
[1718989339388,0.49595301,3491.5,3490.8,3.74241441]
[1718989339587,8.5636,3491.8,3490.9,2.29165]
[1718989339828,2.57894975,3491.7,3490.9,2.29165]
[1718989340124,2.57894975,3491.7,3490.8,1.45070441]
[1718989340125,0.49595187,3491.6,3490.8,3.74243441]